Workbook

Sheet 4月份
A1: 陆 丰 市 2022 年 4 月 财 政 预 算 支 出 完 成 情 况 表
A2: 2022-04-30 | O2: 单位：万元
B3: 年 初 | C3: 年度预算计划 | F3: 累计 | G3: 占年 | H3: 上年 | I3: 比上年 | J3: 比上年 | K3: 本月 | L3: 上年 | M3: 比上年 | N3: 比上年
A4: 支 出 项 目 | B4: 预 算 | F4: 完成 | G4: 预算 | H4: 同期 | I4: 同期增 | J4: 同期增 | K4: 完成 | L4: 同月 | M4: 同月增 | N4: 同月增 | O4: 备 注
B5: 数 | C5: 上年结转 | D5: 上级补助 | E5: 本级安排 | F5: 数 | G5: % | H5: 完成 | I5: 减额 | J5: (减)% | K5: 数 | L5: 完成 | M5: 减额 | N5: (减)%
A6: 201、一般公共服务支出 | D6: 222.22 | E6: 51,911.00 | F6: 33,507 | H6: 26,564 | I6: =F6-H6 -> 6,943 | J6: =I6/H6*100 -> 26.14 | K6: =F6-'[1]3月份 '!F6 -> 7,967 | L6: 5,733 | M6: =K6-L6 -> 2,234 | N6: =M6/L6*100 -> 38.97
A7: 203、国防支出 | H7: 110 | I7: =F7-H7 -> -110 | J7: =I7/H7*100 -> -100.00 | K7: =F7-'[1]3月份 '!F7 -> 0
A8: 204、公共安全支出 | D8: 15.00 | E8: 45,818.00 | F8: 15,251 | H8: 21,204 | I8: =F8-H8 -> -5,953 | J8: =I8/H8*100 -> -28.07 | K8: =F8-'[1]3月份 '!F8 -> 4,081 | L8: 4,347 | M8: =K8-L8 -> -266 | N8: =M8/L8*100 -> -6.12
A9: 205、教育支出 | D9: 3,330.76 | E9: 208,849.00 | F9: 51,578 | H9: 104,045 | I9: =F9-H9 -> -52,467 | J9: =I9/H9*100 -> -50.43 | K9: =F9-'[1]3月份 '!F9 -> 7,281 | L9: 25,893 | M9: =K9-L9 -> -18,612 | N9: =M9/L9*100 -> -71.88
A10: 206、科学技术支出 | E10: 2,354.00 | F10: 3,335 | H10: 3,882 | I10: =F10-H10 -> -547 | J10: =I10/H10*100 -> -14.09 | K10: =F10-'[1]3月份 '!F10 -> 3,042 | L10: 881 | M10: =K10-L10 -> 2,161 | N10: =M10/L10*100 -> 245.29
A11: 207、文化体育与传媒支出 | D11: 231.50 | E11: 14,952.00 | F11: 2,266 | H11: 8,210 | I11: =F11-H11 -> -5,944 | J11: =I11/H11*100 -> -72.40 | K11: =F11-'[1]3月份 '!F11 -> 633 | L11: 4,467 | M11: =K11-L11 -> -3,834 | N11: =M11/L11*100 -> -85.83
A12: 208、社会保障和就业支出 | D12: 2,042.20 | E12: 120,228.00 | F12: 74,234 | H12: 55,913 | I12: =F12-H12 -> 18,321 | J12: =I12/H12*100 -> 32.77 | K12: =F12-'[1]3月份 '!F12 -> 7,530 | L12: 14,333 | M12: =K12-L12 -> -6,803 | N12: =M12/L12*100 -> -47.46
A13: 210、卫生健康支出 | D13: 2,158.11 | E13: 157,329.00 | F13: 96,823 | H13: 69,328 | I13: =F13-H13 -> 27,495 | J13: =I13/H13*100 -> 39.66 | K13: =F13-'[1]3月份 '!F13 -> 13,617 | L13: 4,307 | M13: =K13-L13 -> 9,310 | N13: =M13/L13*100 -> 216.16
A14: 211、节能环保支出 | E14: 6,363.00 | F14: 770 | H14: 1,996 | I14: =F14-H14 -> -1,226 | J14: =I14/H14*100 -> -61.42 | K14: =F14-'[1]3月份 '!F14 -> 97 | L14: 368 | M14: =K14-L14 -> -271 | N14: =M14/L14*100 -> -73.64
A15: 212、城乡社区支出 | D15: 777.88 | E15: 33,031.00 | F15: 13,923 | H15: 11,323 | I15: =F15-H15 -> 2,600 | J15: =I15/H15*100 -> 22.96 | K15: =F15-'[1]3月份 '!F15 -> 1,529 | L15: 3,851 | M15: =K15-L15 -> -2,322 | N15: =M15/L15*100 -> -60.30
A16: 213、农林水支出 | D16: 23,226.40 | E16: 128,268.00 | F16: 27,039 | H16: 50,485 | I16: =F16-H16 -> -23,446 | J16: =I16/H16*100 -> -46.44 | K16: =F16-'[1]3月份 '!F16 -> 8,352 | L16: 20,782 | M16: =K16-L16 -> -12,430 | N16: =M16/L16*100 -> -59.81
A17: 214、交通运输支出 | D17: 2,831.00 | E17: 24,936.00 | F17: 25,235 | H17: 13,095 | I17: =F17-H17 -> 12,140 | J17: =I17/H17*100 -> 92.71 | K17: =F17-'[1]3月份 '!F17 -> 16,803 | L17: 5,309 | M17: =K17-L17 -> 11,494 | N17: =M17/L17*100 -> 216.50
A18: 215、资源勘探信息等支出 | E18: 430.00 | F18: 158 | H18: 293 | I18: =F18-H18 -> -135 | J18: =I18/H18*100 -> -46.08 | K18: =F18-'[1]3月份 '!F18 -> 31 | L18: 151 | M18: =K18-L18 -> -120 | N18: =M18/L18*100 -> -79.47
A19: 216、商业服务业等支出 | E19: 796.00 | F19: 310 | H19: 430 | I19: =F19-H19 -> -120 | J19: =I19/H19*100 -> -27.91 | K19: =F19-'[1]3月份 '!F19 -> 7 | L19: 40 | M19: =K19-L19 -> -33 | N19: =M19/L19*100 -> -82.50
A20: 217、金融支出 | E20: 185.00 | F20: 11,800 | I20: =F20-H20 -> 11,800 | K20: =F20-'[1]3月份 '!F20 -> 11,800
A21: 220、自然资源海洋气象等支出 | E21: 6,653.00 | F21: 1,391 | H21: 4,272 | I21: =F21-H21 -> -2,881 | J21: =I21/H21*100 -> -67.44 | K21: =F21-'[1]3月份 '!F21 -> 435 | L21: 1,335 | M21: =K21-L21 -> -900 | N21: =M21/L21*100 -> -67.42
A22: 221、住房保障支出 | D22: 447.25 | E22: 15,011.00 | F22: 3,623 | H22: 3,523 | I22: =F22-H22 -> 100 | J22: =I22/H22*100 -> 2.84 | K22: =F22-'[1]3月份 '!F22 -> 168 | L22: 797 | M22: =K22-L22 -> -629 | N22: =M22/L22*100 -> -78.92
A23: 222、粮油物资储备支出 | E23: 4,882.00 | F23: 885 | H23: 613 | I23: =F23-H23 -> 272 | J23: =I23/H23*100 -> 44.37 | K23: =F23-'[1]3月份 '!F23 -> 282 | M23: =K23-L23 -> 282
A24: 224、灾害防治及应急管理支出 | D24: 210.00 | E24: 3,504.00 | F24: 764 | H24: 1,435 | I24: =F24-H24 -> -671 | J24: =I24/H24*100 -> -46.76 | K24: =F24-'[1]3月份 '!F24 -> 149 | L24: 169 | M24: =K24-L24 -> -20 | N24: =M24/L24*100 -> -11.83
A25: 232、债务付息支出 | D25: 2010.55 | E25: 1,600.00 | F25: 464 | H25: 534 | I25: =F25-H25 -> -70 | J25: =I25/H25*100 -> -13.11 | K25: =F25-'[1]3月份 '!F25 -> 0 | L25: 70
A26: 233、债务发行费用支出 | F26: 13 | K26: =F26-'[1]3月份 '!F26 -> 13
A27: 229、其他支出 | E27: 42,880.00 | F27: 1,544 | H27: 1,018 | I27: =F27-H27 -> 526 | J27: =I27/H27*100 -> 51.67 | K27: =F27-'[1]3月份 '!F27 -> 456 | L27: -6,070 | M27: =K27-L27 -> 6,526 | N27: =M27/L27*100 -> -107.51
A28: 一、一般公共预算支出合计 | C28: =SUM(C6:C27) -> 0 | D28: =SUM(D6:D27) -> 37,503 | E28: =SUM(E6:E27) -> 869,980 | F28: =SUM(F6:F27) -> 364,913 | H28: =SUM(H6:H27) -> 378,273 | I28: =F28-H28 -> -13,360 | J28: =I28/H28*100 -> -3.53 | K28: =SUM(K6:K27) -> 84,273 | L28: =SUM(L6:L27) -> 86,763 | M28: =K28-L28 -> -2,490 | N28: =M28/L28*100 -> -2.87
A29: 二、政府性基金预算支出 | D29: 121800 | E29: 192576 | F29: 150,002 | H29: 38,073 | I29: =F29-H29 -> 111,929 | J29: =I29/H29*100 -> 293.99 | K29: =F29-'[1]3月份 '!F29 -> 43,027 | L29: 5,585 | M29: =K29-L29 -> 37,442 | N29: =M29/L29*100 -> 670.40
A30: 三、国有资本经营支出 | E30: 963 | F30: 62 | H30: 19 | I30: =F30-H30 -> 43 | J30: =I30/H30*100 -> 226.32 | K30: =F30-'[1]3月份 '!F30 -> 11 | L30: 3 | M30: =K30-L30 -> 8 | N30: =M30/L30*100 -> 266.67
A31: 四、债务还本支出 | K31: =F31-'[1]2月份'!F31 -> 0
A32: 支出合计 | C32: =C28+C29+C30 -> 0 | D32: =D28+D29+D30 -> 159,303 | E32: =E28+E29+E30 -> 1,063,519 | F32: =F28+F29+F30+F31 -> 514,977 | H32: =H28+H29+H30+H31 -> 416,365 | I32: =F32-H32 -> 98,612 | J32: =I32/H32*100 -> 23.68 | K32: =K28+K29+K30+K31 -> 127,311 | L32: =L28+L29+L30+L31 -> 92,351 | M32: =K32-L32 -> 34,960 | N32: =M32/L32*100 -> 37.86
A33: 注：2022年度预算草案还未通过人大决议，故本表没有反映年度预算数和占比数。

Sheet Sheet1

Sheet Sheet2

Sheet Sheet3
